[Event "Irish New Year Events-IM1 2020"]
[Site "Dublin"]
[Date "2020.01.04"]
[Round "5.9"]
[White "Hammar, Bengt"]
[Black "Venkatesan, Kavin"]
[Result "1/2-1/2"]
[ECO "B98"]
[WhiteElo "2175"]
[BlackElo "1815"]
[Annotator "ChessBase"]
[PlyCount "117"]
[EventDate "2020.01.02"]
[EventType "tourn"]
[EventCountry "IRL"]
[SourceTitle "playchess.com"]
[Source "ChessBase"]
[SourceQuality "1"]
[TimeControl "5400+30"]

1. e4 {[%emt 0:00:00]} c5 {[%emt 0:00:00]} 2. Nf3 {[%emt 0:00:18]} d6 {[%emt 0:00:13]} 3. d4 {[%emt 0:00:15]} cxd4 {[%emt 0:00:08]} 4. Nxd4 {[%emt 0:00:08]} Nf6 {[%emt 0:00:07]} 5. Nc3 {[%emt 0:00:13]} a6 {[%emt 0:00:04]} 6. Bg5 {[%emt 0:00:35]} e6 {[%emt 0:00:24]} 7. f4 {[%emt 0:01:05]} Nbd7 {[%emt 0:00:24]} 8. Qf3 {[%emt 0:10:42]} Be7 {[%emt 0:03:52]} 9. Bc4 {[%emt 0:07:28]} O-O {[%emt 0:09:20]} 10. a3 {[%emt 0:02:43]} Qc7 {[%emt 0:02:40]} 11. Ba2 {[%emt 0:00:32]} b5 {[%emt 0:02:10]} 12. Rd1 {[%emt 0:03:12]} Bb7 {[%emt 0:04:23]} 13. f5 {[%emt 0:04:35]} e5 {[%emt 0:13:26]} 14. Bxf6 {[%emt 0:09:41]} Nxf6 {[%emt 0:02:09]} 15. Nde2 {[%emt 0:00:07]} a5 {[%emt 0:09:54]} 16. Bb3 {[%emt 0:04:39]} b4 {[%emt 0:01:07]} 17. axb4 {[%emt 0:00:07]} axb4 {[%emt 0:00:08]} 18. Nd5 {[%emt 0:00:44]} Bxd5 {[%emt 0:02:15]} 19. exd5 {[%emt 0:00:10]} Nd7 {[%emt 0:02:14]} 20. O-O {[%emt 0:02:07]} Nc5 {[%emt 0:02:43]} 21. Ng3 {[%emt 0:00:38]} f6 {[%emt 0:02:17]} 22. Kh1 {[%emt 0:01:46]} Bd8 {[%emt 0:02:13]} 23. Ra1 {[%emt 0:01:58]} Qb7 {[%emt 0:01:30]} 24. Bc4 {[%emt 0:02:29]} Rf7 {[%emt 0:04:50]} 25. b3 {[%emt 0:01:31]} Qb8 {[%emt 0:02:25]} 26. Rxa8 {[%emt 0:00:31]} Qxa8 {[%emt 0:00:04]} 27. Bb5 {[%emt 0:00:41]} Qb8 {[%emt 0:03:13]} 28. Bc6 {[%emt 0:00:23]} Ra7 {[%emt 0:00:09]} 29. Qg4 {[%emt 0:03:31]} Ba5 {[%emt 0:07:04]} 30. h4 {[%emt 0:01:36]} Qc7 {[%emt 0:01:26]} 31. Qc4 {[%emt 0:08:03]} h6 {[%emt 0:03:49]} 32. Ra1 {[%emt 0:00:33]} Qb8 {[%emt 0:01:15]} 33. Qg4 {[%emt 0:00:36]} Qc7 {[%emt 0:00:48]} 34. Nh5 {[%emt 0:00:37]} Kh8 {[%emt 0:01:33]} 35. Re1 {[%emt 0:02:32]} Qf7 {[%emt 0:01:33]} 36. Re3 {[%emt 0:01:19]} Rc7 {[%emt 0:02:20]} 37. Rg3 {[%emt 0:00:42]} Ne4 {[%emt 0:01:14]} 38. Rf3 {[%emt 0:03:37]} Nc3 {[%emt 0:01:52]} 39. Rd3 {[%emt 0:02:10]} Ra7 {[%emt 0:06:31]} 40. Ng3 {[%emt 0:01:00]} Re7 {[%emt 0:00:34]} 41. Ne4 {[%emt 0:04:17]} Nxe4 {[%emt 0:00:27]} 42. Qxe4 {[%emt 0:21:09]} Qh5 {[%emt 0:06:12]} 43. Rf3 {[%emt 0:00:00]} Ra7 {[%emt 0:00:00]} 44. Rf1 {[%emt 0:00:00]} Bb6 {[%emt 0:00:00]} 45. Ba4 {[%emt 0:00:00]} Bd4 {[%emt 0:00:00]} 46. g3 {[%emt 0:00:00]} Ra5 {[%emt 0:00:00]} 47. Kg2 {[%emt 0:00:00]} Rc5 {[%emt 0:00:00]} 48. Rf3 {[%emt 0:00:00]} Qf7 {[%emt 0:00:20]} 49. Bc6 {[%emt 0:00:00]} Qa7 {[%emt 0:00:09]} 50. Ba4 {[%emt 0:00:00]} Qc7 {[%emt 0:00:12]} 51. Bc6 {[%emt 0:00:00]} Qa7 {[%emt 0:00:12]} 52. Ba4 {[%emt 0:00:00]} Qc7 {[%emt 0:00:48]} 53. Bc6 {[%emt 0:00:00]} Qa5 {[%emt 0:00:10]} 54. Kh3 {[%emt 0:00:00]} Qa2 {[%emt 0:00:55]} 55. Rd3 {[%emt 0:00:00]} Bc3 {[%emt 0:01:19]} 56. Qg4 {[%emt 0:03:56]} Qxc2 {[%emt 0:01:02]} 57. Qg6 {[%emt 0:00:07]} Qxd3 {[%emt 0:00:51]} 58. Qe8+ {[%emt 0:00:10]} Kh7 {[%emt 0:00:07]} 59. Qg6+ {[%emt 0:00:03]} 1/2-1/2

[Event "Irish New Year Events-IM1 2020"]
[Site "Dublin"]
[Date "2020.01.05"]
[Round "6.7"]
[White "Venkatesan, Kavin"]
[Black "Waters, Michael"]
[Result "1-0"]
[ECO "D41"]
[WhiteElo "1815"]
[BlackElo "2130"]
[Annotator "ChessBase"]
[PlyCount "73"]
[EventDate "2020.01.02"]
[EventType "tourn"]
[EventCountry "IRL"]
[SourceTitle "playchess.com"]
[Source "ChessBase"]
[SourceQuality "1"]
[TimeControl "40/5400+30:1800+30"]

1. d4 {[%emt 0:00:00]} d5 {[%emt 0:06:42]} 2. c4 {[%emt 0:00:00]} e6 {[%emt 0:00:49]} 3. Nc3 {[%emt 0:00:00]} Nf6 {[%emt 0:00:20]} 4. cxd5 {[%emt 0:00:00]} Nxd5 {[%emt 0:00:37]} 5. e4 {[%emt 0:00:39]} Nxc3 {[%emt 0:00:30]} 6. bxc3 {[%emt 0:01:37]} c5 {[%emt 0:00:04]} 7. Nf3 {[%emt 0:01:59]} cxd4 {[%emt 0:02:55]} 8. cxd4 {[%emt 0:01:44]} Nd7 {[%emt 0:00:39]} 9. Bd3 {[%emt 0:01:41]} Bb4+ {[%emt 0:01:20]} 10. Bd2 {[%emt 0:00:48]} Bxd2+ {[%emt 0:01:14]} 11. Qxd2 {[%emt 0:00:17]} O-O {[%emt 0:00:20]} 12. O-O {[%emt 0:00:26]} b6 {[%emt 0:00:22]} 13. Bb5 {[%emt 0:09:03]} Bb7 {[%emt 0:00:30]} 14. Bxd7 {[%emt 0:01:54]} Qxd7 {[%emt 0:00:13]} 15. Ne5 {[%emt 0:00:07]} Qd6 {[%emt 0:03:37]} 16. f3 {[%emt 0:00:28]} Rfd8 {[%emt 0:01:14]} 17. Rfd1 {[%emt 0:00:21]} Rac8 {[%emt 0:00:31]} 18. Rac1 {[%emt 0:00:36]} b5 {[%emt 0:02:47]} 19. Rxc8 {[%emt 0:02:48]} Rxc8 {[%emt 0:01:34]} 20. Qb2 {[%emt 0:08:05]} a6 {[%emt 0:04:21]} 21. Rd2 {[%emt 0:03:16]} f6 {[%emt 0:06:05]} 22. Nd3 {[%emt 0:03:27]} Rc4 {[%emt 0:02:12]} 23. Nc5 {[%emt 0:03:34]} Bc8 {[%emt 0:00:09]} 24. Nb3 {[%emt 0:01:10]} Bd7 {[%emt 0:05:44]} 25. h3 {[%emt 0:03:23]} h6 {[%emt 0:01:19]} 26. Kh1 {[%emt 0:00:48]} Be8 {[%emt 0:02:55]} 27. e5 {[%emt 0:05:01]} fxe5 {[%emt 0:03:16]} 28. dxe5 {[%emt 0:00:11]} Qc7 {[%emt 0:00:43]} 29. Rd6 {[%emt 0:03:57]} Rc2 {[%emt 0:10:11]} 30. Qd4 {[%emt 0:05:43]} Rxa2 {[%emt 0:01:05]} 31. Nc5 {[%emt 0:00:36]} Bf7 {[%emt 0:29:14]} 32. Rd8+ {[%emt 0:00:32]} Kh7 {[%emt 0:00:22]} 33. Rd7 {[%emt 0:00:19]} Qa5 {[%emt 0:01:16]} 34. Rxf7 {[%emt 0:00:34]} Qe1+ {[%emt 0:01:05]} 35. Kh2 {[%emt 0:00:18]} Qe2 {[%emt 0:02:58]} 36. Qg4 {[%emt 0:04:37]} Qxe5+ {[%emt 0:02:01]} 37. f4 {[%emt 0:00:03]} 1-0

[Event "Irish New Year Events-IM1 2020"]
[Site "Dublin"]
[Date "2020.01.05"]
[Round "6.8"]
[White "Baker, Chris W"]
[Black "Hammar, Bengt"]
[Result "1/2-1/2"]
[ECO "A48"]
[WhiteElo "2225"]
[BlackElo "2175"]
[Annotator "ChessBase"]
[PlyCount "61"]
[EventDate "2020.01.02"]
[EventType "tourn"]
[EventCountry "IRL"]
[SourceTitle "playchess.com"]
[Source "ChessBase"]
[SourceQuality "1"]
[TimeControl "40/5400+30:1800+30"]

1. d4 {[%emt 0:00:00]} Nf6 {[%emt 0:00:00]} 2. Nf3 {[%emt 0:00:00]} g6 {[%emt 0:00:54]} 3. Bf4 {[%emt 0:00:15]} c5 {[%emt 0:02:30]} 4. c3 {[%emt 0:06:05]} Bg7 {[%emt 0:03:14]} 5. Nbd2 {[%emt 0:02:45]} b6 {[%emt 0:10:53]} 6. e3 {[%emt 0:05:27]} d6 {[%emt 0:02:46]} 7. h3 {[%emt 0:02:31]} O-O {[%emt 0:00:45]} 8. Be2 {[%emt 0:01:05]} Ba6 {[%emt 0:04:58]} 9. O-O {[%emt 0:03:15]} Bxe2 {[%emt 0:02:21]} 10. Qxe2 {[%emt 0:04:14]} Qc8 {[%emt 0:05:32]} 11. Bh2 {[%emt 0:02:58]} Qb7 {[%emt 0:02:33]} 12. a4 {[%emt 0:04:33]} Rc8 {[%emt 0:04:37]} 13. Qb5 {[%emt 0:06:49]} a6 {[%emt 0:03:54]} 14. Qb3 {[%emt 0:02:45]} cxd4 {[%emt 0:05:31]} 15. exd4 {[%emt 0:03:39]} Nc6 {[%emt 0:00:21]} 16. Nc4 {[%emt 0:04:11]} Rcb8 {[%emt 0:47:11]} 17. Ng5 {[%emt 0:07:05]} Nd8 {[%emt 0:00:00]} 18. Rfe1 {[%emt 0:07:49]} h6 {[%emt 0:00:00]} 19. Nf3 {[%emt 0:04:55]} b5 {[%emt 0:00:00]} 20. axb5 {[%emt 0:06:12]} axb5 {[%emt 0:00:00]} 21. Ne3 {[%emt 0:02:35]} Nc6 {[%emt 0:00:00]} 22. Nd5 {[%emt 0:03:58]} Rxa1 {[%emt 0:00:00]} 23. Rxa1 {[%emt 0:00:29]} b4 {[%emt 0:00:00]} 24. Nxf6+ {[%emt 0:05:10]} Bxf6 {[%emt 0:00:00]} 25. Bf4 {[%emt 0:02:48]} bxc3 {[%emt 0:00:00]} 26. Qxb7 {[%emt 0:00:10]} Rxb7 {[%emt 0:00:00]} 27. bxc3 {[%emt 0:00:02]} Kg7 {[%emt 0:00:00]} 28. Ra6 {[%emt 0:01:13]} Nb8 {[%emt 0:00:00]} 29. Ra8 {[%emt 0:00:33]} Nd7 {[%emt 0:00:00]} 30. Kf1 {[%emt 0:02:25]} Nb6 {[%emt 0:00:00]} 31. Ra2 {[%emt 0:00:42]} 1/2-1/2

[Event "Irish New Year Events-IM1 2020"]
[Site "Dublin"]
[Date "2020.01.05"]
[Round "6.10"]
[White "Melaugh, Shane"]
[Black "Kanyamarala, Tarun"]
[Result "0-1"]
[ECO "A10"]
[WhiteElo "2207"]
[BlackElo "2320"]
[Annotator "NA"]
[PlyCount "78"]
[EventDate "2020.01.02"]
[EventType "tourn"]
[EventCountry "IRL"]
[SourceTitle "playchess.com"]
[Source "ChessBase"]
[SourceQuality "1"]
[TimeControl "40/5400+30:1800+30"]

1. c4 {[%emt 0:01:29]} b6 {[%emt 0:00:00]} 2. Nc3 {[%emt 0:01:15]} Bb7 {[%emt 0:00:00]} 3. e4 {[%emt 0:00:20]} e5 {[%emt 0:00:06]} 4. Nf3 {[%emt 0:03:38]} Nc6 {[%emt 0:00:18]} 5. d4 {[%emt 0:00:17]} exd4 {[%emt 0:01:27]} 6. Nxd4 {[%emt 0:00:12]} Bb4 {[%emt 0:02:26]} 7. Be3 {[%emt 0:05:42]} Bxc3+ {[%emt 0:09:15]} 8. bxc3 {[%emt 0:00:42]} Nge7 {[%emt 0:05:00]} 9. Be2 {[%emt 0:05:44]} O-O {[%emt 0:09:17]} 10. O-O {[%emt 0:01:33]} Nxd4 {[%emt 0:08:17]} 11. Qxd4 {[%emt 0:01:42]} Nc6 {[%emt 0:00:02]} 12. Qd2 {[%emt 0:00:12]} Qe7 {[%emt 0:01:07]} 13. f3 {[%emt 0:00:24]} d6 {[%emt 0:01:54]} 14. Bd4 {[%emt 0:01:04]} Na5 {[%emt 0:04:05]} 15. Rab1 {[%emt 0:01:49]} Qe6 {[%emt 0:11:09]} 16. c5 {[%emt 0:04:46]} dxc5 {[%emt 0:14:49]} 17. Bxc5 {[%emt 0:00:09]} bxc5 {[%emt 0:08:50]} 18. Rb5 {[%emt 0:00:27]} Qa6 {[%emt 0:00:05]} 19. Rxc5 {[%emt 0:00:05]} Qb6 {[%emt 0:00:38]} 20. Qd4 {[%emt 0:01:39]} Nc6 {[%emt 0:03:46]} 21. Qf2 {[%emt 0:00:35]} Ba6 {[%emt 0:00:38]} 22. Bxa6 {[%emt 0:01:12]} Qxa6 {[%emt 0:00:06]} 23. f4 {[%emt 0:01:04]} Rfe8 {[%emt 0:02:23]} 24. e5 {[%emt 0:00:20]} Rad8 {[%emt 0:00:57]} 25. Qf3 {[%emt 0:01:02]} Ne7 {[%emt 0:02:49]} 26. Kh1 {[%emt 0:02:17]} Qb6 {[%emt 0:02:47]} 27. Rc4 {[%emt 0:00:07]} Nf5 {[%emt 0:01:27]} 28. Re4 {[%emt 0:00:29]} Qa6 {[%emt 0:03:36]} 29. Rfe1 {[%emt 0:02:08]} Qd3 {[%emt 0:02:50]} 30. Qg4 {[%emt 0:01:36]} g6 {[%emt 0:00:31]} 31. c4 {[%emt 0:03:55]} h5 {[%emt 0:00:20]} 32. Qe2 {[%emt 0:00:13]} Qxe2 {[%emt 0:00:32]} 33. R4xe2 {[%emt 0:00:10]} Rd4 {[%emt 0:00:10]} 34. g3 {[%emt 0:00:13]} Rxc4 {[%emt 0:01:13]} 35. Rd1 {[%emt 0:00:07]} Nd4 {[%emt 0:01:19]} 36. Rb2 {[%emt 0:00:08]} c5 {[%emt 0:00:15]} 37. Rb7 {[%emt 0:00:06]} Rc2 {[%emt 0:00:10]} 38. Rd3 {[%emt 0:00:26]} Rxa2 {[%emt 0:00:26]} 39. Rc7 {[%emt 0:00:04]} Rb8 {[%emt 0:00:15]} 0-1

[Event "Irish New Year Events-IM1 2020"]
[Site "Dublin"]
[Date "2020.01.05"]
[Round "7.6"]
[White "Kanyamarala, Tarun"]
[Black "Mannion, Stephen R"]
[Result "1-0"]
[ECO "C45"]
[WhiteElo "2320"]
[BlackElo "2283"]
[Annotator "RC"]
[PlyCount "83"]
[EventDate "2020.01.02"]
[EventType "tourn"]
[EventCountry "IRL"]
[SourceTitle "playchess.com"]
[Source "ChessBase"]
[SourceQuality "1"]
[TimeControl "5400+30"]

1. e4 {[%emt 0:00:00]} e5 {[%emt 0:02:39]} 2. Nf3 {[%emt 0:00:00]} Nc6 {[%emt 0:00:06]} 3. d4 {[%emt 0:00:00]} exd4 {[%emt 0:00:11]} 4. Nxd4 {[%emt 0:00:00]} Nf6 {[%emt 0:00:12]} 5. Nxc6 {[%emt 0:00:05]} bxc6 {[%emt 0:00:07]} 6. e5 {[%emt 0:00:15]} Qe7 {[%emt 0:00:16]} 7. Qe2 {[%emt 0:00:09]} Nd5 {[%emt 0:00:08]} 8. h4 {[%emt 0:00:19]} a5 {[%emt 0:09:31]} 9. g3 {[%emt 0:01:34]} Ba6 {[%emt 0:01:49]} 10. c4 {[%emt 0:00:09]} Nb6 {[%emt 0:00:37]} 11. Nd2 {[%emt 0:00:34]} d5 {[%emt 0:01:10]} 12. b3 {[%emt 0:11:09]} g6 {[%emt 0:02:12]} 13. Bg2 {[%emt 0:03:26]} Bg7 {[%emt 0:00:49]} 14. Bb2 {[%emt 0:00:01]} O-O {[%emt 0:01:09]} 15. O-O {[%emt 0:00:40]} Rfe8 {[%emt 0:00:51]} 16. Rfe1 {[%emt 0:01:46]} a4 {[%emt 0:02:27]} 17. Qe3 {[%emt 0:18:47]} Bb7 {[%emt 0:18:26]} 18. Bd4 {[%emt 0:14:16]} Nd7 {[%emt 0:05:59]} 19. cxd5 {[%emt 0:18:25]} cxd5 {[%emt 0:00:10]} 20. Rac1 {[%emt 0:00:26]} c5 21. Bxc5 {[%emt 0:00:30]} Qxe5 {[%emt 0:26:38]} 22. Qxe5 {[%emt 0:11:30]} Nxe5 {[%emt 0:05:24]} 23. Re3 {[%emt 0:03:46]} axb3 {[%emt 0:02:17]} 24. axb3 {[%emt 0:05:27]} Rac8 {[%emt 0:06:45]} 25. b4 {[%emt 0:00:23]} Ng4 {[%emt 0:03:45]} 26. Rxe8+ {[%emt 0:01:09]} Rxe8 {[%emt 0:00:01]} 27. Nb3 {[%emt 0:02:06]} Ne5 {[%emt 0:01:51]} 28. Rd1 {[%emt 0:00:44]} Ba8 {[%emt 0:03:29]} 29. f4 {[%emt 0:03:30]} Ng4 {[%emt 0:00:06]} 30. Bxd5 {[%emt 0:00:46]} Bxd5 {[%emt 0:00:19]} 31. Rxd5 {[%emt 0:00:01]} Re1+ {[%emt 0:00:28]} 32. Kg2 {[%emt 0:00:11]} h5 {[%emt 0:00:13]} 33. Rd8+ {[%emt 0:01:06]} Kh7 {[%emt 0:00:02]} 34. Nd2 {[%emt 0:01:03]} Rd1 {[%emt 0:01:34]} 35. Kf3 {[%emt 0:00:24]} Re1 {[%emt 0:00:51]} 36. b5 {[%emt 0:00:52]} Bc3 {[%emt 0:01:22]} 37. b6 {[%emt 0:00:51]} Bxd2 {[%emt 0:00:17]} 38. Rxd2 {[%emt 0:00:47]} Rb1 {[%emt 0:00:17]} 39. Rd7 {[%emt 0:00:30]} Rb3+ {[%emt 0:00:41]} 40. Ke2 {[%emt 0:00:13]} Kh6 {[%emt 0:03:11]} 41. b7 {[%emt 0:01:17]} Nf6 {[%emt 0:00:10]} 42. Rxf7 {[%emt 0:00:14]} 1-0

[Event "Irish New Year Events-IM1 2020"]
[Site "Dublin"]
[Date "2020.01.05"]
[Round "7.7"]
[White "O`Donnell, Conor"]
[Black "Melaugh, Shane"]
[Result "0-1"]
[ECO "A96"]
[WhiteElo "2307"]
[BlackElo "2207"]
[Annotator "ChessBase"]
[PlyCount "128"]
[EventDate "2020.01.02"]
[EventType "tourn"]
[EventCountry "IRL"]
[SourceTitle "playchess.com"]
[Source "ChessBase"]
[SourceQuality "1"]
[TimeControl "5400+30"]

1. Nf3 {[%emt 0:00:00]} d6 {[%emt 0:00:00]} 2. d4 {[%emt 0:00:02]} f5 {[%emt 0:00:00]} 3. g3 {[%emt 0:00:22]} Nf6 {[%emt 0:00:04]} 4. Bg2 {[%emt 0:00:05]} e6 {[%emt 0:00:05]} 5. c4 {[%emt 0:00:23]} Be7 {[%emt 0:00:03]} 6. O-O {[%emt 0:00:20]} O-O {[%emt 0:00:06]} 7. Nc3 {[%emt 0:00:17]} Ne4 {[%emt 0:02:02]} 8. a4 {[%emt 0:00:25]} Nxc3 {[%emt 0:01:16]} 9. bxc3 {[%emt 0:00:05]} Nc6 {[%emt 0:00:06]} 10. a5 {[%emt 0:00:41]} Rb8 {[%emt 0:11:27]} 11. d5 {[%emt 0:02:46]} Ne5 {[%emt 0:00:14]} 12. Nd4 {[%emt 0:01:33]} c5 {[%emt 0:06:48]} 13. dxc6 {[%emt 0:04:05]} bxc6 {[%emt 0:01:55]} 14. f4 {[%emt 0:05:19]} c5 {[%emt 0:01:27]} 15. fxe5 {[%emt 0:00:19]} cxd4 {[%emt 0:00:03]} 16. exd6 {[%emt 0:01:39]} Bxd6 {[%emt 0:01:12]} 17. cxd4 {[%emt 0:00:47]} Ba6 {[%emt 0:00:09]} 18. c5 {[%emt 0:11:31]} Be7 {[%emt 0:00:09]} 19. Bf4 {[%emt 0:04:10]} Rb4 {[%emt 0:00:07]} 20. Be5 {[%emt 0:31:33]} Bf6 {[%emt 0:08:55]} 21. Bxf6 {[%emt 0:00:05]} Qxf6 {[%emt 0:00:13]} 22. d5 {[%emt 0:00:57]} Rd4 {[%emt 0:00:42]} 23. Qb3 {[%emt 0:00:57]} Bc4 {[%emt 0:00:23]} 24. Qb7 {[%emt 0:01:19]} Bxd5 {[%emt 0:07:25]} 25. c6 {[%emt 0:04:16]} Bxg2 {[%emt 0:03:17]} 26. Kxg2 {[%emt 0:00:02]} Qe5 {[%emt 0:00:30]} 27. c7 {[%emt 0:02:38]} Qxe2+ {[%emt 0:02:26]} 28. Rf2 {[%emt 0:00:51]} Qc4 {[%emt 0:00:13]} 29. Raa2 {[%emt 0:01:58]} Rd5 {[%emt 0:01:04]} 30. Rae2 Rb5 {[%emt 0:07:20]} 31. Qa6 {[%emt 0:18:19]} Rc5 {[%emt 0:01:19]} 32. Qxa7 {[%emt 0:04:04]} Rxc7 {[%emt 0:00:07]} 33. Qe3 {[%emt 0:00:25]} Rc6 {[%emt 0:02:03]} 34. Qe5 {[%emt 0:02:12]} Ra8 {[%emt 0:01:03]} 35. Rd2 {[%emt 0:01:00]} Qc5 {[%emt 0:04:52]} 36. Rfe2 {[%emt 0:00:27]} Qxe5 {[%emt 0:01:28]} 37. Rxe5 {[%emt 0:00:02]} Ra7 {[%emt 0:00:40]} 38. g4 {[%emt 0:02:08]} g6 {[%emt 0:00:57]} 39. gxf5 {[%emt 0:00:20]} gxf5 {[%emt 0:00:06]} 40. Rb5 {[%emt 0:00:54]} Kf7 {[%emt 0:00:06]} 41. Rdb2 {[%emt 0:00:27]} Kf6 {[%emt 0:01:12]} 42. Rb7 {[%emt 0:00:41]} Rxb7 {[%emt 0:09:27]} 43. Rxb7 {[%emt 0:00:01]} h5 {[%emt 0:00:55]} 44. Kg3 {[%emt 0:00:45]} Rc3+ {[%emt 0:02:03]} 45. Kh4 {[%emt 0:00:17]} Ra3 {[%emt 0:00:09]} 46. Rb5 {[%emt 0:00:20]} Kg6 {[%emt 0:00:16]} 47. Rb6 {[%emt 0:00:18]} Ra4+ {[%emt 0:00:22]} 48. Kg3 {[%emt 0:00:12]} Kf6 {[%emt 0:00:26]} 49. a6 {[%emt 0:00:20]} Ke5 {[%emt 0:00:29]} 50. h4 {[%emt 0:01:04]} f4+ {[%emt 0:00:48]} 51. Kf3 {[%emt 0:01:04]} Ra3+ {[%emt 0:00:06]} 52. Ke2 {[%emt 0:00:30]} Kf5 {[%emt 0:00:07]} 53. Rb5+ {[%emt 0:00:20]} e5 {[%emt 0:00:22]} 54. Rb6 {[%emt 0:00:12]} e4 {[%emt 0:00:28]} 55. Rb5+ {[%emt 0:00:33]} Kg4 {[%emt 0:00:14]} 56. Re5 {[%emt 0:00:56]} Ra2+ {[%emt 0:00:09]} 57. Ke1 {[%emt 0:00:08]} e3 {[%emt 0:00:39]} 58. Re6 {[%emt 0:01:04]} Kf3 {[%emt 0:00:12]} 59. Kd1 {[%emt 0:00:20]} e2+ {[%emt 0:00:19]} 60. Ke1 {[%emt 0:00:05]} Ra1+ {[%emt 0:00:07]} 61. Kd2 {[%emt 0:00:07]} Rd1+ {[%emt 0:00:22]} 62. Kc2 {[%emt 0:00:12]} e1=Q {[%emt 0:00:08]} 63. Rxe1 {[%emt 0:00:15]} Rxe1 {[%emt 0:00:05]} 64. a7 {[%emt 0:00:07]} Ra1 {[%emt 0:00:04]} 0-1

[Event "Irish New Year Events-IM1 2020"]
[Site "Dublin"]
[Date "2020.01.05"]
[Round "7.8"]
[White "Hammar, Bengt"]
[Black "Delaney, Killian"]
[Result "0-1"]
[ECO "B40"]
[WhiteElo "2175"]
[BlackElo "2278"]
[Annotator "ChessBase"]
[PlyCount "58"]
[EventDate "2020.01.02"]
[EventType "tourn"]
[EventCountry "IRL"]
[SourceTitle "playchess.com"]
[Source "ChessBase"]
[SourceQuality "1"]
[TimeControl "5400+30"]

1. e4 {[%emt 0:00:00]} c5 {[%emt 0:00:00]} 2. Nf3 {[%emt 0:00:00]} e6 {[%emt 0:00:00]} 3. d4 {[%emt 0:00:35]} cxd4 {[%emt 0:00:00]} 4. Nxd4 {[%emt 0:00:05]} Nf6 {[%emt 0:00:04]} 5. Bd3 {[%emt 0:02:50]} Nc6 {[%emt 0:00:27]} 6. Nxc6 {[%emt 0:00:34]} bxc6 {[%emt 0:00:55]} 7. O-O {[%emt 0:00:33]} d5 {[%emt 0:02:09]} 8. exd5 {[%emt 0:02:17]} cxd5 {[%emt 0:00:33]} 9. Bb5+ {[%emt 0:06:58]} Bd7 {[%emt 0:02:33]} 10. Bxd7+ {[%emt 0:00:09]} Qxd7 {[%emt 0:00:56]} 11. b3 {[%emt 0:00:33]} Qc7 {[%emt 0:04:40]} 12. Bb2 {[%emt 0:02:14]} Bd6 {[%emt 0:00:23]} 13. h3 {[%emt 0:01:08]} Bh2+ {[%emt 0:05:52]} 14. Kh1 {[%emt 0:00:19]} Be5 {[%emt 0:00:09]} 15. Bxe5 {[%emt 0:01:32]} Qxe5 {[%emt 0:00:04]} 16. Nd2 {[%emt 0:00:02]} Qc3 {[%emt 0:01:03]} 17. Nf3 {[%emt 0:02:25]} O-O {[%emt 0:01:00]} 18. Re1 {[%emt 0:02:12]} Rfc8 {[%emt 0:02:25]} 19. Rc1 {[%emt 0:00:55]} Ne4 {[%emt 0:01:25]} 20. Kg1 {[%emt 0:00:26]} Qb2 {[%emt 0:02:08]} 21. a4 {[%emt 0:00:33]} Nc3 {[%emt 0:00:20]} 22. Qd2 {[%emt 0:03:07]} Na2 {[%emt 0:03:53]} 23. Rb1 {[%emt 0:02:35]} Qxc2 {[%emt 0:00:12]} 24. Qe3 {[%emt 0:01:09]} Nc3 {[%emt 0:05:06]} 25. Rbc1 {[%emt 0:09:39]} Qxb3 {[%emt 0:00:16]} 26. Nd4 {[%emt 0:01:14]} Qb4 {[%emt 0:00:50]} 27. Nxe6 {[%emt 0:07:06]} fxe6 {[%emt 0:00:15]} 28. Qxe6+ {[%emt 0:00:06]} Kh8 {[%emt 0:00:10]} 29. Rc2 {[%emt 0:00:29]} d4 {[%emt 0:02:50]} 0-1

[Event "Irish New Year Events-IM1 2020"]
[Site "Dublin"]
[Date "2020.01.05"]
[Round "7.9"]
[White "Waters, Michael"]
[Black "Baker, Chris W"]
[Result "0-1"]
[ECO "A05"]
[WhiteElo "2130"]
[BlackElo "2225"]
[Annotator "ChessBase"]
[PlyCount "88"]
[EventDate "2020.01.02"]
[EventType "tourn"]
[EventCountry "IRL"]
[SourceTitle "playchess.com"]
[Source "ChessBase"]
[SourceQuality "1"]
[TimeControl "5400+30"]

1. Nf3 {[%emt 0:00:00]} Nf6 {[%emt 0:01:16]} 2. b3 {[%emt 0:00:00]} g6 {[%emt 0:01:12]} 3. Bb2 {[%emt 0:00:14]} Bg7 {[%emt 0:00:16]} 4. e4 {[%emt 0:03:32]} d6 {[%emt 0:05:44]} 5. Bc4 {[%emt 0:00:45]} c6 {[%emt 0:02:20]} 6. O-O {[%emt 0:02:21]} b5 {[%emt 0:04:32]} 7. Bd3 {[%emt 0:00:37]} Nbd7 {[%emt 0:01:26]} 8. Re1 {[%emt 0:01:47]} O-O {[%emt 0:02:47]} 9. a4 {[%emt 0:04:58]} bxa4 {[%emt 0:03:20]} 10. Rxa4 {[%emt 0:03:54]} Nc5 {[%emt 0:01:04]} 11. Ra2 {[%emt 0:00:05]} Nxd3 {[%emt 0:07:34]} 12. cxd3 {[%emt 0:00:06]} Qb6 {[%emt 0:01:14]} 13. d4 {[%emt 0:10:56]} Be6 {[%emt 0:02:06]} 14. Ra3 {[%emt 0:00:13]} Rfb8 {[%emt 0:00:46]} 15. Nc3 {[%emt 0:05:00]} Bxb3 {[%emt 0:00:56]} 16. Qc1 {[%emt 0:04:23]} Bh6 {[%emt 0:07:54]} 17. h3 {[%emt 0:03:05]} d5 {[%emt 0:09:12]} 18. Ba1 {[%emt 0:04:25]} Nxe4 {[%emt 0:01:42]} 19. Nxe4 {[%emt 0:00:33]} dxe4 {[%emt 0:00:06]} 20. Rxe4 {[%emt 0:01:09]} Bd5 {[%emt 0:00:36]} 21. Re1 {[%emt 0:00:48]} a5 {[%emt 0:05:39]} 22. Ne5 {[%emt 0:00:52]} Ra7 {[%emt 0:02:16]} 23. Nd3 {[%emt 0:01:32]} Qb5 {[%emt 0:01:54]} 24. Nc5 {[%emt 0:01:43]} Bg7 {[%emt 0:03:43]} 25. Kh2 {[%emt 0:07:44]} h5 {[%emt 0:01:58]} 26. Kg1 {[%emt 0:01:43]} Qb6 {[%emt 0:04:13]} 27. Bc3 {[%emt 0:14:24]} Qc7 {[%emt 0:00:30]} 28. Qa1 Qf4 {[%emt 0:03:48]} 29. f3 {[%emt 0:01:46]} Rb5 {[%emt 0:07:54]} 30. Nd3 {[%emt 0:01:29]} Qg5 {[%emt 0:00:47]} 31. Kh1 {[%emt 0:01:33]} Qg3 {[%emt 0:01:06]} 32. Re3 {[%emt 0:16:13]} Rab7 {[%emt 0:03:16]} 33. Qg1 {[%emt 0:00:04]} Rb1 {[%emt 0:02:04]} 34. Ne1 {[%emt 0:00:24]} Bh6 {[%emt 0:00:42]} 35. Re2 {[%emt 0:02:09]} Bf4 {[%emt 0:01:39]} 36. Bxa5 {[%emt 0:01:15]} Rd1 {[%emt 0:00:44]} 37. d3 {[%emt 0:04:10]} Rbb1 {[%emt 0:01:10]} 38. Bc3 {[%emt 0:00:17]} Rxd3 {[%emt 0:01:49]} 39. Ra1 {[%emt 0:01:22]} Rxa1 {[%emt 0:00:58]} 40. Bxa1 {[%emt 0:00:03]} Rd1 {[%emt 0:00:10]} 41. Bc3 {[%emt 0:00:14]} e6 {[%emt 0:01:32]} 42. Rb2 {[%emt 0:01:16]} Kg7 {[%emt 0:00:55]} 43. Rc2 {[%emt 0:00:33]} g5 {[%emt 0:00:20]} 44. Re2 {[%emt 0:01:17]} g4 {[%emt 0:00:19]} 0-1